Cogmind - Beta 14 @@@ ROGUE MODE // 2024.10.26 @ 22:30:59 Player: Mutetourette Result: Destroyed by 2L-LPU(R) with Subdweller Machine Gun Performance ------------- Evolutions (0) 0 Regions Visited (2) 400 Robots Destroyed (26) 130 Value Destroyed (782) 782 Prototype IDs (0) 0 Alien Tech Used (0) 0 Bonus (0) 0 TOTAL SCORE: 1312 Bonus ------- None Cogmind --------- Core Integrity 0/250 Matter 229/300 Energy 230/250 System Corruption 0% Temperature Cool (0) Movement Treading (240) Ox1 Location -10/Subcaves Parts ------- > --- POWER (1) -------- Ion Engine > --- PROPULSION (2) --- Light Treads > --- UTILITY (2) ------ Makeshift Light Armor Plating Makeshift Light Armor Plating > --- WEAPON (2) ------- Subdweller Laser Subdweller Machine Gun > --- INVENTORY (5) ---- Subdweller Power Source Subdweller Monowheel Subdweller Monowheel Disposable Heat Sink Peak State ------------ > --- POWER ------------ Ion Engine > --- PROPULSION ------- Light Treads Spiked Treads > --- UTILITY ---------- Small Storage Unit Makeshift Light Armor Plating > --- WEAPON ----------- Subdweller Laser Subdweller Machine Gun > --- INVENTORY -------- Subdweller Monowheel Subdweller Monowheel Disposable Heat Sink Light Armor Plating Grenade Launcher Flamer [Rating: 14] Favorites ----------- Power Ion Engine Engine Ion Engine Propulsion Aluminum Leg Treads Light Treads Leg Aluminum Leg Utility Small Storage Unit Device Improved Terrain Scanner Storage Small Storage Unit Protection Makeshift Light Armor Plating Weapon Medium Laser Energy Gun Medium Laser Ballistic Gun Subdweller Machine Gun Launcher Grenade Launcher Build | -11 -10 -10 ------- Run | Yrd Mat Sub Slots Evolved . | . . . Power . | . . . Propulsion . | . . . Utility . | . . . Weapon . | . . . Parts Attached 29 | 8 1 20 Power 3 | 1 . 2 Engine 3 | 1 . 2 Core . | . . . Reactor . | . . . Propulsion 6 | 3 . 3 Treads 4 | 1 . 3 Leg 2 | 2 . . Wheel . | . . . Hover . | . . . Flight . | . . . Utility 5 | 2 . 3 Device 1 | 1 . . Storage 1 | 1 . . Processor . | . . . Hackware . | . . . Protection 3 | . . 3 Artifact . | . . . Weapon 15 | 2 1 12 Energy Gun 8 | 2 1 5 Energy Cannon . | . . . Ballistic Gun 1 | . . 1 Ballistic Cannon . | . . . Launcher 6 | . . 6 Special Weapon . | . . . Impact Weapon . | . . . Slashing Weapon . | . . . Piercing Weapon . | . . . Special Melee Weapon . | . . . Unidentified Prototypes . | . . . Parts Lost 7 | . . 7 Power 2 | . . 2 Propulsion 2 | . . 2 Utility 1 | . . 1 Weapon 2 | . . 2 Highest Loss Streak 2 | . . 2 To Critical Strikes . | . . . Average Slot Usage (%) 99 | . 100 99 Engine 13 | . 14 13 Treads 15 | . . 21 Leg 12 | . 28 6 Device 5 | . 14 2 Storage 13 | . 14 13 Protection 8 | . . 12 Energy Gun 21 | . 28 18 Ballistic Gun 2 | . . 4 Launcher 3 | . . 5 Peak Build Rating 14 | 9 9 14 Average Rating 10 | 5 9 12 On Entrance 6 | . 9 9 Naked Turns . | . . . Heaviest Build 24 | 13 13 24 Greatest Support 40 | 20 20 40 Greatest Overweight (x) 1 | . . 1 Average Overweight (x) . | . . . Largest Inventory Capacity 8 | 8 8 8 Average Capacity 7 | 6 8 7 Most Carried 8 | 7 8 8 Average Carried 7 | 5 7 7 Final Capacity 8 | 8 8 5 Final Carried 8 | 6 8 4 Class Distribution -------------------- 100% | Mutant Dominant Class ---------------- Mutant | -10/Materials Mutant | -10/Subcaves Resources | -11 -10 -10 ----------- Run | Yrd Mat Sub Matter Collected 852 | 200 70 582 Remotely . | . . . Salvage Created 748 | 99 49 600 Parts 50 | 4 4 42 Haulers Intercepted . | . . . Recyclers Shooed 1 | 1 . . Parts Field Recycled . | . . . Retrieved Matter . | . . . Parts Self-Destructed 14 | . . 14 Prevented . | . . . Kills | -11 -10 -10 ------- Run | Yrd Mat Sub Combat Hostiles Destroyed 23 | . 3 20 Guns 13 | . 3 10 AOE 10 | . . 10 Classes Destroyed 7 | 2 1 4 Tunneler 1 | 1 . . Recycler 1 | 1 . . Turret 1 | . . 1 Swarmer 6 | . 3 3 Grunt 1 | . . 1 Sentry 1 | . . 1 Subdweller 15 | . . 15 Best Kill Streak 6 | 2 3 6 Combat Bots Only 6 | . 3 6 Max Kills in Single Turn 2 | 1 2 1 Gunslinging 1 | . 1 . Exploded 1 | . . 1 Melee . | . . . Uniques/NPCs Destroyed . | . . . Combat | -11 -10 -10 -------- Run | Yrd Mat Sub Hostile Shots Fired 96 | . 14 82 Missed 27 | . 4 23 Damage Taken 1523 | . 79 1444 Core 259 | . 9 250 Absorbed by Shields . | . . . Core Remaining (%) 100 | 100 . . Volleys Fired 67 | 5 6 56 Largest 2 | 2 2 2 Hottest 100 | 90 100 100 Shots Fired 114 | 10 12 92 Gun 84 | 10 12 62 Cannon . | . . . Launcher 30 | . . 30 Special . | . . . Kinetic 24 | . . 24 Thermal 70 | 5 12 53 Explosive 15 | . . 15 Electromagnetic 5 | 5 . . Robot Hit Streak 12 | 6 5 12 Robot Miss Streak 4 | 1 1 4 Penetration Max . | . . . Secondary Targets 1 | . 1 . Max Gunslinging Chain 1 | . 1 . Shots Hit Robots 65 | 6 9 50 Core Hits 49 | 3 3 43 Critical Kills 1 | . . 1 Critical Parts Destroyed . | . . . Critical Strikes 7 | . 1 6 Burn 6 | . 1 5 Destroy 1 | . . 1 Melee Attacks . | . . . Impact . | . . . Slashing . | . . . Piercing . | . . . Sneak Attacks . | . . . Combat Hostiles . | . . . Follow-up Attacks . | . . . Damage Inflicted 2007 | 78 110 1819 Guns 843 | 78 110 655 Cannons . | . . . Explosions 1164 | . . 1164 Melee . | . . . Ramming . | . . . Kinetic 976 | . . 976 Thermal 664 | 38 110 516 Explosive 327 | . . 327 Electromagnetic 40 | 40 . . Impact . | . . . Slashing . | . . . Piercing . | . . . Highest Corruption . | . . . Average Corruption . | . . . Corruption Purged . | . . . Corruption Blocked . | . . . Overload Shots . | . . . Overflow Damage 12 | . . 12 Projectiles . | . . . Explosions 12 | . . 12 Melee . | . . . Knockbacks . | . . . Impact . | . . . Kinetic . | . . . Secondary . | . . . Self-Inflicted Damage 238 | . . 238 Shots 8 | . . 8 Rammed . | . . . Targets Rammed . | . . . Kicked . | . . . Crushed . | . . . Highest Temperature 234 | 120 234 16 Average Temperature 57 | 54 119 7 Received Heat Transfer 219 | . . 219 Siege Activations . | . . . Robots Corrupted . | . . . Combat Hostiles . | . . . Parts Fried . | . . . Impact Corruptions . | . . . Robots Melted . | . . . Combat Hostiles . | . . . Parts Melted 2 | . 1 1 Heat Transferred 2234 | 111 407 1716 Parts Sabotaged . | . . . Parts Stolen . | . . . Parts Stripped . | . . . Power Chain Reactions . | . . . Alert | -11 -10 -10 ------- Run | Yrd Mat Sub Peak Influence 70 | 10 70 . Initial 6 | . 6 . Average 19 | 4 21 . Maximum Alert Level . | . . . Low Security (%) 100 | 100 100 . Level 1 . | . . . Level 2 . | . . . Level 3 . | . . . Level 4 . | . . . Level 5 . | . . . High Security . | . . . Max Security . | . . . Squads Dispatched . | . . . Investigation . | . . . Extermination . | . . . Reinforcement . | . . . Assault . | . . . Garrison . | . . . Intercept . | . . . Searches Triggered . | . . . Construction Impeded . | . . . Haulers Reinforced . | . . . Active Scanning Responses . | . . . Cargo Convoy Interrupts . | . . . Stealth | -11 -10 -10 --------- Run | Yrd Mat Sub Distress Signals . | . . . Communications Jammed . | . . . Distress Signals . | . . . Times Spotted 32 | . 3 29 Peak Tracking Total 4 | . 3 4 Tactical Retreats 4 | . . 4 Traps | -11 -10 -10 ------- Run | Yrd Mat Sub Traps Triggered 1 | . . 1 Indirectly . | . . . Trap Hack Attempts . | . . . Triggered . | . . . Disarmed . | . . . Reprogrammed . | . . . Reused . | . . . Traps Extracted . | . . . Installed . | . . . Triggered . | . . . Machines | -11 -10 -10 ---------- Run | Yrd Mat Sub Machines Disabled 4 | . . 4 Max in Single Turn 1 | . . 1 Machines Repaired . | . . . Machines Dismantled . | . . . Machines Sabotaged . | . . . Overloaded Fab Kills . | . . . Hacking | -11 -10 -10 --------- Run | Yrd Mat Sub Machines Accessed 1 | . 1 . Terminals 1 | . 1 . Fabricators . | . . . Repair Stations . | . . . Recycling Units . | . . . Scanalyzers . | . . . Garrison Access . | . . . Total Hacks 2 | . 2 . Successful 1 | . 1 . Failed 1 | . 1 . Catastrophic . | . . . Database Lockouts . | . . . Manual 1 | . 1 . Terminals 2 | . 2 . Fabricators . | . . . Repair Stations . | . . . Recycling Units . | . . . Scanalyzers . | . . . Garrison Access . | . . . Terminal Hacks 1 | . 1 . Locate Traps 1 | . 1 . Fabricator Hacks . | . . . Repair Station Hacks . | . . . Recycling Unit Hacks . | . . . Scanalyzer . | . . . Garrison Access Hacks . | . . . Unauthorized Hacks . | . . . Terminals . | . . . Fabricators . | . . . Repair Stations . | . . . Recycling Units . | . . . Scanalyzers . | . . . Garrison Access . | . . . Data Cores Recovered . | . . . Used . | . . . Hacking Detections 1 | . 1 . Full Trace Events . | . . . Feedback Events . | . . . Feedback Blocked . | . . . Robot Schematics Acquired . | . . . Robots Built . | . . . Authchips . | . . . Time . | . . . Total Robot Build Rating . | . . . Part Schematics Acquired . | . . . Parts Built . | . . . Authchips . | . . . Time . | . . . Total Part Build Rating . | . . . Parts Repaired . | . . . Time . | . . . Parts Recycled . | . . . Recycled Matter . | . . . Retrieved Matter . | . . . Retrieved Components . | . . . Parts Scanalyzed . | . . . Part Schematics Acquired . | . . . Parts Damaged . | . . . Bothacking | -11 -10 -10 ------------ Run | Yrd Mat Sub Used RIF Installer . | . . . Robots Hacked . | . . . Non-combat . | . . . Combat . | . . . Robot Hacks Applied . | . . . Relay Couplers Released . | . . . Fabnet Peak Effective % . | . . . Robots Rewired . | . . . Allies Hacked . | . . . Hacks Repelled . | . . . Allies | -11 -10 -10 -------- Run | Yrd Mat Sub Total Allies . | . . . Largest Group . | . . . Highest-Rated Group . | . . . Highest-Rated Ally . | . . . Total Orders . | . . . Ally Attacks . | . . . Total Damage . | . . . Kills . | . . . Allies Corrupted . | . . . Allies Melted . | . . . Intel | -11 -10 -10 ------- Run | Yrd Mat Sub Robot Analysis Total . | . . . Derelict Logs Recovered 1 | . . 1 Drone Launches . | . . . Drone Recoveries . | . . . Exploration | -11 -10 -10 ------------- Run | Yrd Mat Sub Turns Passed 2369 | 88 676 1605 Spaces Moved 1066 | 48 113 905 Core 8 | 8 . . Treads 685 | 8 . 677 Legs 373 | 32 113 228 Wheels . | . . . Hover . | . . . Flight . | . . . Fastest Speed 50 | 50 120 120 Average Speed 145 | 115 120 150 Slowest Speed 190 | 160 120 190 Overloaded Moves . | . . . Propulsion Burnouts . | . . . Robots Hopped . | . . . Cave-ins Triggered . | . . . Exploration Rate (%) 28 | 4 19 61 Regions Visited 2 Branch Regions 1 Pre-discovered Areas . | . . . Known Exits Taken . | . . . Unknown Exits Taken 2 | 1 1 . Scrap Searched . | . . . Spaces Dug . | . . . Terrain Destroyed 222 | . . 222 Melee . | . . . Projectile 1 | . . 1 AOE 221 | . . 221 Terrain Rammed . | . . . Walls Destroyed . | . . . Machines Disabled . | . . . Actions | -11 -10 -10 --------- Run | Yrd Mat Sub Total 1769 | 68 641 1060 Wait 570 | . 520 50 Move 1064 | 47 112 905 Hop . | . . . Pick Up 25 | 8 2 15 Fast Attach 7 | 5 . 2 Attach 7 | 2 . 5 Detach . | . . . Swap 15 | 1 1 13 Drop 14 | . . 14 Fire 67 | 5 6 56 Melee . | . . . Ram . | . . . Kick . | . . . Crush . | . . . Escape Stasis . | . . . Rewire . | . . . Trap . | . . . Miscellaneous . | . . . Route ------- -11/Scrapyard -10/Materials (discovered 2 exits: [Mat] / [*Sub]) -10/Subcaves (discovered 2 exits: [*Mat] / [*Rec]) History --------- Turn | Location | Event 2 | -11/Scrapyard | Met Revision 17 12 | -11/Scrapyard | Discovered new exit (range 16) 89 | -11/Scrapyard | Entered Materials 182 | -10/Materials | Discovered new exit (range 11) 314 | -10/Materials | Build established: Mutant 386 | -10/Materials | Discovered new exit (range 9) 765 | -10/Materials | Entered Subcaves 980 | -10/Subcaves | Discovered new exit (range 12) 981 | -10/Subcaves | Shifting Twisted Machinery released Humpback 981 | -10/Subcaves | Shifting Twisted Machinery released Mak. Light Armor Plating 1172 | -10/Subcaves | A swath of the cavern ceiling suddenly collapsed 1275 | -10/Subcaves | Core integrity fell below 50% 1290 | -10/Subcaves | Ambushed by Subdweller buried in earth 1866 | -10/Subcaves | Disturbed a concealed Subdweller 2332 | -10/Subcaves | Discovered new exit (range 12) 2335 | -10/Subcaves | Core integrity fell below 20% 2370 | -10/Subcaves | Destroyed by 2L-LPU(R) with Subdweller Machine Gun Last Messages --------------- 02303_ Acquired 2 matter. 02308_ Destroyed Flight Unit. 02308_ S-10 Pest destroyed. 02312_ Flight Unit fries itself beyond repair. 02312_ Subatomizers dissect the Sub. Machine Gun. 02314_ S-10 Pest suffers critical hit (Destroy). 02314_ S-10 Pest destroyed. 02314_ Machine disabled. 02323_ Lgt. Assault Rifle fries itself beyond repair. 02330_ Autobeam Turret destroyed. 02331_ The unstable cave ceiling collapses. 02332_ EXIT=FOUND 02337_ Machine disabled. 02354_ Acquired 49 matter. 02362_ 2L-LPU(R): "SUBHATE!" 02364_ Spk. Treads destroyed. 02368_ Sml. Storage Unit destroyed. Map ----- +----------------------------------------------------+ | ???????????????????????????????? #??##%= #???### | | ????????????????????????????#### #??# ##?????# | | ????????????????????##???#### ##### ######## | | ???????????????????## ??## # ## ## | | ??????????????###?## ?## # # ##### | | ?????????? " # ## ?# #### #???# | | ????????????? ?# #??# ##???# # | | ?????????????????# ## #??# #????# ##### | | ?????????????????## #??# #???## ####???### | | ????????????????## % ###??# ##### #????????? | | ????????????????# ##????# #????????? | | ???????????????## # #?????##########????????? | | ????????" ######???????????????????? | | ?????????#% ##"# ## ####????????????????? | | ?????###?###???#?##??# ##???????????????? | | ????## ########????## #???????????????? | | ???## # < #?????## #???????????????? | | ???# ##?##### ### #???????????????? | | ???# ?## ##? ##???????????????? | | ????# # ## ## #????????????????? | | ????# # #????????????????? | | ????# # #????????????????? | | ?????# #### ## #####????????????????? | | ?????????# ######?##R #????????????????????? | | ?????????# % = ###???#| ##???????????????????? | | ?????????# %& #??##@] #???????????????????? | | ?????????# !*% #### # "##??????????????????? | | ?????????# # ! ""####???????????????? | | ?????????# #### "" """???????????????? | | ????????# ##### ## ## #" """???????????????? | | ????????# ????# # "" " ??????????????? | | ??????? ?????# " ###"" #????????????? | | ????? ????# ## "" ##??###??????????????? | | ??? ###??? # # # # #???????????????????? | | ??## ???? % ?############???????????????????? | | ???# ????## ?????????????????????????????????? | | ???##??????# ##?????????????????????????????????? | | ???????????###???????????????????????????????????? | | ?????????????????????????????????????????????????? | | ?????????????????????????????????????????????????? | | ?????????????????????????????????????????????????? | | ?????????????????????????????????????????????????? | | ?????????????????????????????????????????????????? | | ?????????????????????????????????????????????????? | | ?????????????????????????????????????????????????? | | ?????????????????????????????????????????????????? | | ?????????????????????????????????????????????????? | | ?????????????????????????????????????????????????? | | ?????????????????????????????????????????????????? | | ?????????????????????????????????????????????????? | +----------------------------------------------------+ Best States ------------- Heat Dissipation 25 Energy Generation 15 Energy Capacity 250 Matter Stores 300 Matter Capacity 300 Sight Range 16 Terrain Scan Range 16 Terrain Scan Density 10 Armor Coverage 100 Evasion (%) 55 Recoil Reduction 2 Item Schematics ----------------- None Robot Schematics ------------------ None Fabricated ------------ Nothing Alien Tech Used ----------------- None Achievements -------------- None Challenges ------------ None Game ------ Seed CargoAbsorptionCore Manual? 0 Play Time 00:17:54 Cumulative 23.2 hours Start 2024.10.26 @ 22:06:24 End 2024.10.26 @ 22:30:59 Sessions 1 Manual Loads 0 Difficulty Rogue Special Mode None Game No. 57 Rogue 57 Adventurer 0 Explorer 0 Win Type - Total 0 Types 0/0/0/0/0/0/0/0/0 Lore% 28 Gallery% 29 Achievement% 28 Wizard Run 0 Options --------- Layout 1 ASCII 0 Keyboard 0 Movement Mouse Keybinds 0 Fullscreen 1 Font 24/Smallcaps Map View 50x35 Zoom Use 0% Tactical HUD 1 Map Filters NONE Filters NONE Steam 1 RUN: fcab0323-5a58-430b-91bb-4f70141d2f89